fUSD/lending_fUSD_20241205
["ID","MTS","AMOUNT","RATE_DAILY","PERIOD"]
[344350935,1733362260553,-1598.58,7.499e-05,2]
[344350936,1733362260564,-1598.58,7.499e-05,2]
[344350937,1733362260576,-1598.58,7.499e-05,2]
[344350938,1733362260586,-135.47837284,7.499e-05,2]
[344350939,1733362260600,-1156.7300001,7.499e-05,2]
[344350940,1733362260649,-306.37162706,7.499e-05,2]
[344350941,1733362260659,-481.30837294,7.499e-05,2]
[344350942,1733362260671,-1117.27162706,7.499e-05,2]
[344350943,1733362260682,-1598.58,7.499e-05,2]
[344350944,1733362260693,-1516.18130866,7.499e-05,2]
[344350945,1733362260966,-82.39869134,7.499e-05,2]
[344350946,1733362260977,-1598.74,7.499e-05,2]
[344350947,1733362260988,-170.49278062,7.499e-05,2]
[344350948,1733362261009,-914.91721938,7.499e-05,2]
[344350949,1733362261021,-1085.41,7.499e-05,2]
[344350950,1733362261032,-1085.41,7.499e-05,2]
[344350951,1733362261043,-1085.41,7.499e-05,2]
[344350952,1733362261054,-1085.41,7.499e-05,2]
[344350953,1733362261065,-1085.41,7.499e-05,2]
[344350954,1733362261076,-419.23283062,7.499e-05,2]
[344350955,1733362261089,-666.17716938,7.499e-05,2]
[344350956,1733362261101,-1085.41,7.499e-05,2]
[344350957,1733362261112,-1085.58,7.499e-05,2]
[344350958,1733362261123,-914.26,7.499e-05,2]
[344350959,1733362261134,-914.26,7.499e-05,2]
[344350960,1733362261145,-914.26,7.499e-05,2]
[344350961,1733362261155,-914.26,7.499e-05,2]
[344350962,1733362261166,-45.79285062,7.499e-05,2]
[344350963,1733362261180,-868.46714938,7.499e-05,2]
[344350964,1733362261191,-914.26,7.499e-05,2]
[344350965,1733362261202,-914.26,7.499e-05,2]
[344350966,1733362261213,-431.9899725,7.499e-05,2]
[344350967,1733362261226,-482.2700275,7.499e-05,2]
[344350968,1733362261236,-496.57698383,7.499e-05,2]
[344350969,1733362261256,-417.79887799,7.499e-05,2]
[344350970,1733362261267,-977.74,7.499e-05,2]
[344350971,1733362261278,-977.74,7.499e-05,2]
[344350972,1733362261290,-977.74,7.499e-05,2]
[344350973,1733362261301,-578.09475801,7.499e-05,2]
[344350974,1733362261316,-282.38999991,7.499e-05,2]
[344350975,1733362261328,-117.25524208,7.499e-05,2]
[344350976,1733362261339,-471.68475792,7.499e-05,2]
[344350977,1733362261356,-506.05524208,7.499e-05,2]
[344350978,1733362261366,-977.74,7.499e-05,2]
[344350979,1733362261377,-977.74,7.499e-05,2]
[344350980,1733362261387,-977.74,7.499e-05,2]
[344350981,1733362261398,-977.86,7.499e-05,2]
[344350982,1733362261409,-1591.85,7.499e-05,2]
[344350983,1733362261419,-1591.85,7.499e-05,2]
[344350984,1733362261430,-1591.85,7.499e-05,2]
[344350985,1733362261440,-1591.85,7.499e-05,2]
[344350986,1733362261455,-1591.85,7.499e-05,2]
[344350987,1733362261466,-1591.85,7.499e-05,2]
[344350988,1733362261476,-1591.85,7.499e-05,2]
[344350989,1733362261487,-1591.85,7.499e-05,2]
[344350990,1733362261497,-1591.93,7.499e-05,2]
[344350991,1733362261516,-791.61,7.499e-05,2]
[344350992,1733362261527,-791.61,7.499e-05,2]
[344350993,1733362261539,-791.61,7.499e-05,2]
[344350994,1733362261551,-1287.6,7.499e-05,2]
[344350995,1733362261565,-791.61,7.499e-05,2]
[344350996,1733362261576,-1287.6,7.499e-05,2]
[344350997,1733362261586,-1287.6,7.499e-05,2]
[344350998,1733362261597,-1287.6,7.499e-05,2]
[344350999,1733362261607,-1287.6,7.499e-05,2]
[344351000,1733362261617,-1287.6,7.499e-05,2]
[344351001,1733362261628,-1287.6,7.499e-05,2]
[344351002,1733362261641,-1287.6,7.499e-05,2]
[344351003,1733362261651,-1287.6,7.499e-05,2]
[344351004,1733362261662,-1287.6,7.499e-05,2]
[344351005,1733362261672,-1287.6,7.499e-05,2]
[344351006,1733362261682,-1287.61529342,7.499e-05,2]
[344351007,1733362261692,-791.61,7.499e-05,2]
[344351008,1733362261701,-791.61,7.499e-05,2]
[344351009,1733362261711,-791.61,7.499e-05,2]
[344351010,1733362261721,-791.61,7.499e-05,2]
[344351011,1733362261730,-791.82,7.499e-05,2]
[344351012,1733362261740,-772.57,7.499e-05,2]
[344351013,1733362261755,-772.57,7.499e-05,2]
[344351014,1733362261766,-772.57,7.499e-05,2]
[344351015,1733362261777,-772.57,7.499e-05,2]
[344351016,1733362261787,-772.57,7.499e-05,2]
[344351017,1733362261798,-772.57,7.499e-05,2]
[344351018,1733362261808,-772.57,7.499e-05,2]
[344351019,1733362261818,-772.57,7.499e-05,2]
[344351020,1733362261828,-772.62,7.499e-05,2]
[344351021,1733362261838,-2113.41,7.499e-05,2]
[344351022,1733362261848,-2113.41,7.499e-05,2]
[344351023,1733362261858,-2113.41,7.499e-05,2]
[344351024,1733362261868,-2113.41,7.499e-05,2]
[344351025,1733362261878,-2113.41,7.499e-05,2]
[344351026,1733362261888,-2113.41,7.499e-05,2]
[344351027,1733362261899,-2113.41,7.499e-05,2]
[344351028,1733362261910,-2113.41,7.499e-05,2]
[344351029,1733362261923,-2113.41,7.499e-05,2]
[344351030,1733362261933,-2113.41,7.499e-05,2]
[344351031,1733362261943,-2113.41,7.499e-05,2]
[344351032,1733362261954,-2113.41,7.499e-05,2]
[344351033,1733362261964,-2113.54122494,7.499e-05,2]
[344351034,1733362261974,-1619.86,7.499e-05,2]
[344351035,1733362261985,-1619.86,7.499e-05,2]
[344351036,1733362261995,-1619.86,7.499e-05,2]
[344351037,1733362262010,-1619.86,7.499e-05,2]
[344351038,1733362262020,-1619.86,7.499e-05,2]
[344351039,1733362262030,-1619.86,7.499e-05,2]
[344351040,1733362262040,-1619.86,7.499e-05,2]
[344351041,1733362262050,-1619.86,7.499e-05,2]
[344351042,1733362262060,-1619.86,7.499e-05,2]
[344351043,1733362262070,-1619.86,7.499e-05,2]
[344351044,1733362262080,-1619.86,7.499e-05,2]
[344351045,1733362262090,-1619.86,7.499e-05,2]
[344351046,1733362262100,-1620.03574909,7.499e-05,2]
[344351047,1733362262110,-7719.72,7.499e-05,2]
[344351048,1733362262120,-7719.72,7.499e-05,2]
[344351049,1733362262130,-7719.72,7.499e-05,2]
[344351050,1733362262140,-7719.72,7.499e-05,2]
[344351051,1733362262150,-7719.72,7.499e-05,2]
[344351052,1733362262161,-7719.72,7.499e-05,2]
[344351053,1733362262171,-7719.72,7.499e-05,2]
[344351054,1733362262181,-7719.72,7.499e-05,2]
[344351055,1733362262192,-7719.72,7.499e-05,2]
[344351056,1733362262203,-7719.72,7.499e-05,2]
[344351057,1733362262214,-7719.72,7.499e-05,2]
[344351058,1733362262226,-7719.72,7.499e-05,2]
[344351059,1733362262236,-7719.8279583,7.499e-05,2]
[344351060,1733362262247,-1386.93,7.499e-05,2]
[344351061,1733362262260,-1386.93,7.499e-05,2]
[344351062,1733362262271,-1386.93,7.499e-05,2]
[344351063,1733362262283,-1386.93,7.499e-05,2]
[344351064,1733362262293,-1386.93,7.499e-05,2]
[344351065,1733362262303,-1386.93,7.499e-05,2]
[344351066,1733362262313,-1386.93,7.499e-05,2]
[344351067,1733362262322,-1386.93,7.499e-05,2]
[344351068,1733362262333,-1386.93,7.499e-05,2]
[344351069,1733362262343,-500.0,7.499e-05,2]
[344351070,1733362262353,-1386.93,7.499e-05,2]
[344351071,1733362262363,-500.0,7.499e-05,2]
[344351072,1733362262373,-1386.93,7.499e-05,2]
[344351073,1733362262383,-1386.93,7.499e-05,2]
[344351074,1733362262394,-1386.93,7.499e-05,2]
[344351075,1733362262404,-500.0,7.499e-05,2]
[344351076,1733362262414,-500.0,7.499e-05,2]
[344351077,1733362262424,-500.0,7.499e-05,2]
[344351078,1733362262434,-500.0,7.499e-05,2]
[344351079,1733362262443,-394.01380847,7.499e-05,2]
[344351080,1733362262453,-1267.52,7.499e-05,2]
[344351081,1733362262463,-1267.52,7.499e-05,2]
[344351082,1733362262485,-1267.52,7.499e-05,2]
[344351083,1733362262500,-1267.52,7.499e-05,2]
[344351084,1733362262511,-1267.52,7.499e-05,2]
[344351085,1733362262521,-1267.52,7.499e-05,2]
[344351086,1733362262531,-1267.52,7.499e-05,2]
[344351087,1733362262543,-1267.52,7.499e-05,2]
[344351088,1733362262554,-1267.52,7.499e-05,2]
[344351089,1733362262567,-1267.52,7.499e-05,2]
[344351090,1733362262578,-1267.52,7.499e-05,2]
[344351091,1733362262588,-1267.52235374,7.499e-05,2]
[344351092,1733362262598,-2981.76,7.499e-05,2]
[344351093,1733362262608,-714.26,7.499e-05,2]
[344351094,1733362262618,-2981.76,7.499e-05,2]
[344351095,1733362262628,-714.26,7.499e-05,2]
[344351096,1733362262640,-2981.76,7.499e-05,2]
[344351097,1733362262650,-714.26,7.499e-05,2]
[344351098,1733362262661,-2981.76,7.499e-05,2]
[344351099,1733362262671,-714.26,7.499e-05,2]
[344351100,1733362262681,-2981.76,7.499e-05,2]
[344351101,1733362262691,-714.26,7.499e-05,2]
[344351102,1733362262702,-2981.76,7.499e-05,2]
[344351103,1733362262963,-714.26,7.499e-05,2]
[344351104,1733362262995,-2981.76,7.499e-05,2]
[344351105,1733362263008,-714.26,7.499e-05,2]
[344351106,1733362263018,-720.51,7.499e-05,2]
[344351107,1733362263027,-714.26,7.499e-05,2]
[344351108,1733362263037,-2981.76,7.499e-05,2]
[344351109,1733362263047,-720.51,7.499e-05,2]
[344351110,1733362263057,-500.0,7.499e-05,2]
[344351111,1733362263067,-714.26,7.499e-05,2]
[344351112,1733362263078,-720.51,7.499e-05,2]
[344351113,1733362263089,-714.26,7.499e-05,2]
[344351114,1733362263098,-2981.76,7.499e-05,2]
[344351115,1733362263108,-720.51,7.499e-05,2]
[344351116,1733362263119,-500.0,7.499e-05,2]
[344351117,1733362263130,-714.26,7.499e-05,2]
[344351118,1733362263141,-2981.76,7.499e-05,2]
[344351119,1733362263151,-720.51,7.499e-05,2]
[344351120,1733362263162,-500.0,7.499e-05,2]
[344351121,1733362263173,-714.26,7.499e-05,2]
[344351122,1733362263184,-720.51,7.499e-05,2]
[344351123,1733362263195,-500.0,7.499e-05,2]
[344351124,1733362263207,-714.40394586,7.499e-05,2]
[344351125,1733362263217,-2981.76,7.499e-05,2]
[344351126,1733362263228,-720.51,7.499e-05,2]
[344351127,1733362263239,-500.0,7.499e-05,2]
[344351128,1733362263255,-2981.76,7.499e-05,2]
[344351129,1733362263267,-500.0,7.499e-05,2]
[344351130,1733362263278,-2981.89076838,7.499e-05,2]
[344351131,1733362263290,-500.0,7.499e-05,2]
[344351132,1733362263308,-720.51,7.499e-05,2]
[344351133,1733362263320,-720.51,7.499e-05,2]
[344351134,1733362263332,-720.51,7.499e-05,2]
[344351135,1733362263344,-500.0,7.499e-05,2]
[344351136,1733362263356,-720.51,7.499e-05,2]
[344351137,1733362263367,-720.68,7.499e-05,2]
[344351138,1733362263379,-523.12,7.499e-05,2]
[344351139,1733362263389,-523.12,7.499e-05,2]
[344351140,1733362263401,-523.12,7.499e-05,2]
[344351141,1733362263412,-523.12,7.499e-05,2]
[344351142,1733362263424,-523.12,7.499e-05,2]
[344351143,1733362263435,-523.12,7.499e-05,2]
[344351144,1733362263446,-523.12,7.499e-05,2]
[344351145,1733362263458,-523.12,7.499e-05,2]
[344351146,1733362263470,-523.12,7.499e-05,2]
[344351147,1733362263482,-523.12,7.499e-05,2]
[344351148,1733362263493,-523.12,7.499e-05,2]
[344351149,1733362263510,-523.12,7.499e-05,2]
[344351150,1733362263522,-4642.0,7.499e-05,2]
[344351151,1733362263534,-523.14,7.499e-05,2]
[344351152,1733362263546,-4642.0,7.499e-05,2]
[344351153,1733362263559,-4642.0,7.499e-05,2]
[344351154,1733362263572,-4642.0,7.499e-05,2]
[344351155,1733362263584,-4642.0,7.499e-05,2]
[344351156,1733362263595,-4642.0,7.499e-05,2]
[344351157,1733362263606,-4642.0,7.499e-05,2]
[344351158,1733362263618,-4642.0,7.499e-05,2]
[344351159,1733362263628,-4642.0,7.499e-05,2]
[344351160,1733362263640,-4642.0,7.499e-05,2]
[344351161,1733362263652,-4642.0,7.499e-05,2]
[344351162,1733362263664,-4642.08000001,7.499e-05,2]
[344351163,1733362263675,-705.37,7.499e-05,2]
[344351164,1733362263686,-705.37,7.499e-05,2]
[344351165,1733362263698,-705.37,7.499e-05,2]
[344351166,1733362263708,-705.37,7.499e-05,2]
[344351167,1733362263719,-705.37,7.499e-05,2]
[344351168,1733362263730,-705.37,7.499e-05,2]
[344351169,1733362263740,-912.39,7.499e-05,2]
[344351170,1733362263759,-705.37,7.499e-05,2]
[344351171,1733362263771,-755.43,7.499e-05,2]
[344351172,1733362263782,-705.37,7.499e-05,2]
[344351173,1733362263794,-912.39,7.499e-05,2]
[344351174,1733362263805,-755.43,7.499e-05,2]
[344351175,1733362263816,-705.37,7.499e-05,2]
[344351176,1733362263829,-912.39,7.499e-05,2]
[344351177,1733362263841,-755.43,7.499e-05,2]
[344351178,1733362263852,-705.37,7.499e-05,2]
[344351179,1733362263863,-912.39,7.499e-05,2]
[344351180,1733362263874,-755.43,7.499e-05,2]
[344351181,1733362263884,-705.37,7.499e-05,2]
[344351182,1733362263896,-3074.11,7.499e-05,2]
[344351183,1733362263906,-912.39,7.499e-05,2]
[344351184,1733362263917,-755.43,7.499e-05,2]
[344351185,1733362263928,-912.39,7.499e-05,2]
[344351186,1733362263940,-705.49,7.499e-05,2]
[344351187,1733362263951,-3074.11,7.499e-05,2]
[344351188,1733362263962,-755.43,7.499e-05,2]
[344351189,1733362263974,-912.39,7.499e-05,2]
[344351190,1733362263985,-755.43,7.499e-05,2]
[344351191,1733362263996,-3074.11,7.499e-05,2]
[344351192,1733362264011,-912.39,7.499e-05,2]
[344351193,1733362264022,-912.39,7.499e-05,2]
[344351194,1733362264034,-755.43,7.499e-05,2]
[344351195,1733362264045,-912.39,7.499e-05,2]
[344351196,1733362264057,-3074.11,7.499e-05,2]
[344351197,1733362264068,-755.43,7.499e-05,2]
[344351198,1733362264079,-3074.11,7.499e-05,2]
[344351199,1733362264091,-912.39,7.499e-05,2]
[344351200,1733362264103,-3074.11,7.499e-05,2]
[344351201,1733362264115,-755.43,7.499e-05,2]
[344351202,1733362264126,-912.39,7.499e-05,2]
[344351203,1733362264137,-755.43,7.499e-05,2]
[344351204,1733362264148,-3074.11,7.499e-05,2]
[344351205,1733362264159,-755.51,7.499e-05,2]
[344351206,1733362264171,-3074.11,7.499e-05,2]
[344351207,1733362264182,-3074.11,7.499e-05,2]
[344351208,1733362264193,-3074.11,7.499e-05,2]
[344351209,1733362264206,-3074.11,7.499e-05,2]
[344351210,1733362264217,-3074.23,7.499e-05,2]
[344351211,1733362264228,-912.49396903,7.499e-05,2]
[344351212,1733362264238,-1848.13,7.499e-05,2]
[344351213,1733362264249,-1848.13,7.499e-05,2]
[344351214,1733362264265,-1848.13,7.499e-05,2]
[344351215,1733362264276,-1848.13,7.499e-05,2]
[344351216,1733362264288,-1848.13,7.499e-05,2]
[344351217,1733362264299,-763.2,7.499e-05,2]
[344351218,1733362264310,-1848.13,7.499e-05,2]
[344351219,1733362264320,-763.2,7.499e-05,2]
[344351220,1733362264330,-1848.13,7.499e-05,2]
[344351221,1733362264341,-763.2,7.499e-05,2]
[344351222,1733362264353,-763.2,7.499e-05,2]
[344351223,1733362264363,-1848.13,7.499e-05,2]
[344351224,1733362264374,-763.2,7.499e-05,2]
[344351225,1733362264385,-1848.13,7.499e-05,2]
[344351226,1733362264396,-763.2,7.499e-05,2]
[344351227,1733362264407,-1848.13,7.499e-05,2]
[344351228,1733362264418,-763.2,7.499e-05,2]
[344351229,1733362264428,-1848.13,7.499e-05,2]
[344351230,1733362264439,-763.2,7.499e-05,2]
[344351231,1733362264449,-1848.27,7.499e-05,2]
[344351232,1733362264460,-763.2,7.499e-05,2]
[344351233,1733362264471,-763.2,7.499e-05,2]
[344351234,1733362264481,-763.2,7.499e-05,2]
[344351235,1733362264492,-763.2,7.499e-05,2]
[344351236,1733362264507,-763.23493574,7.499e-05,2]
[344351237,1733362264518,-756.0,7.499e-05,2]
[344351238,1733362264530,-756.0,7.499e-05,2]
[344351239,1733362264544,-756.0,7.499e-05,2]
[344351240,1733362264555,-756.0,7.499e-05,2]
[344351241,1733362264569,-756.0,7.499e-05,2]
[344351242,1733362264582,-756.0,7.499e-05,2]
[344351243,1733362264598,-756.0,7.499e-05,2]
[344351244,1733362264611,-756.0,7.499e-05,2]
[344351245,1733362264622,-756.0,7.499e-05,2]
[344351246,1733362264633,-756.0,7.499e-05,2]
[344351247,1733362264645,-756.0,7.499e-05,2]
[344351248,1733362264657,-756.0,7.499e-05,2]
[344351249,1733362264667,-3145.46,7.499e-05,2]
[344351250,1733362264678,-756.14152733,7.499e-05,2]
[344351251,1733362264690,-991.22,7.499e-05,2]
[344351252,1733362264700,-3145.46,7.499e-05,2]
[344351253,1733362264710,-991.22,7.499e-05,2]
[344351254,1733362264721,-3145.46,7.499e-05,2]
[344351255,1733362264731,-991.22,7.499e-05,2]
[344351256,1733362264742,-3145.46,7.499e-05,2]
[344351257,1733362264756,-991.22,7.499e-05,2]
[344351258,1733362264767,-3145.46,7.499e-05,2]
[344351259,1733362264791,-991.22,7.499e-05,2]
[344351260,1733362264803,-3145.46,7.499e-05,2]
[344351261,1733362264813,-991.22,7.499e-05,2]
[344351262,1733362264824,-1912.35726429,7.499e-05,2]
[344351263,1733362264851,-293.7000025,7.499e-05,2]
[344351264,1733362264863,-456.44460512,7.499e-05,2]
[344351265,1733362264876,-482.95812809,7.499e-05,2]
[344351266,1733362264886,-836.00671765,7.499e-05,2]
[344351267,1733362264948,-85.3662549,7.499e-05,2]
[344351268,1733362264961,-7253.08702745,7.499e-05,2]
[344351269,1733362264971,-2846.91297255,7.499e-05,2]
[344351270,1733362264984,-298.54702745,7.499e-05,2]
[344351271,1733362264995,-6531.45297455,7.499e-05,2]
[344351272,1733362265019,-1643.00702545,7.499e-05,2]
[344351273,1733362265030,-991.22,7.499e-05,2]
[344351274,1733362265041,-3145.46,7.499e-05,2]
[344351275,1733362265052,-8174.46,7.499e-05,2]
[344351276,1733362265063,-8008.98362774,7.499e-05,2]
[344351277,1733362265076,-165.47637226,7.499e-05,2]
[344351278,1733362265087,-991.22,7.499e-05,2]
[344351279,1733362265098,-3145.46,7.499e-05,2]
[344351280,1733362265108,-4219.23797687,7.499e-05,2]
[344351281,1733362265121,-1224.73989343,7.499e-05,2]
[344351282,1733362269463,700.0,6.1e-05,2]
[344351283,1733362271626,1400.0,6.2e-05,2]
[344351284,1733362273720,2100.0,6.3e-05,2]
[344351285,1733362275834,2900.0,6.4e-05,2]
[344351286,1733362277942,3600.0,6.5e-05,2]
[344351287,1733362280074,700.0,6.6e-05,2]
[344351288,1733362283936,700.0,6.7e-05,2]
[344351289,1733362286056,700.0,6.8e-05,2]
[344351290,1733362288158,700.0,6.9e-05,2]
[344351291,1733362290259,1125.0,7e-05,2]
[344351292,1733362335843,1000.0,6.1e-05,2]
[344351293,1733362337653,2000.0,6.2e-05,2]
[344351294,1733362339798,3100.0,6.3e-05,2]
[344351295,1733362341912,4100.0,6.4e-05,2]
[344351296,1733362344004,5200.0,6.5e-05,2]
[344351297,1733362347232,1000.0,6.6e-05,2]
[344351298,1733362349336,1000.0,6.7e-05,2]
[344351299,1733362351454,1000.0,6.8e-05,2]
[344351300,1733362353790,1000.0,6.9e-05,2]
[344351301,1733362354001,739.14,6.632e-05,2]
[344351302,1733362356086,1500.0,7e-05,2]
[344351304,1733362373303,1500.0,6.6e-05,2]
[344351305,1733362530567,150.0,7.095e-05,2]
[344351306,1733362547385,166.96,6.802e-05,2]
[344351307,1733362561179,611.98,6.583e-05,2]
[344351308,1733362572113,150.0,7.102e-05,2]
[344351309,1733362600107,3393.22,6.577e-05,2]
[344351310,1733362613687,150.0,7.11e-05,2]
[344351311,1733362655232,150.49260599,7.117e-05,2]
[344351312,1733362659174,500.0,6.587e-05,2]
[344351313,1733362721627,250.0,6.559e-05,2]
[344351314,1733362737081,17731.0,7.129e-05,2]
[344351315,1733362773867,163.8,6.567e-05,2]
[344351316,1733362783345,23900.0,6.555e-05,2]
[344351317,1733362923523,250.0,6.536e-05,2]
[344351319,1733363023893,1500.0,6.537e-05,2]
[344351321,1733363137799,-217.0,0.00022,120]
[344351322,1733363137833,-200.0,0.00023,120]
[344351323,1733363191854,820.49,6.487e-05,2]
[344351327,1733363203642,5196.91,6.539e-05,2]
[344351328,1733363204535,5240.5,0.00023,120]
[344351329,1733363238737,446.54,6.487e-05,2]
[344351345,1733363404460,23900.0,6.471e-05,2]
[344351346,1733363410464,250.0,6.471e-05,2]
[344351356,1733363431967,-820.49,7.298e-05,2]
[344351357,1733363431978,-2500.0,7.339e-05,2]
[344351358,1733363431987,-542.80728093,7.339e-05,2]
[344351359,1733363431997,-166.96,7.363e-05,2]
[344351361,1733363432008,-542.80728092,7.368e-05,2]
[344351363,1733363432017,-150.0,7.37e-05,2]
[344351364,1733363432027,-150.0,7.395e-05,2]
[344351365,1733363432038,-1001.62287984,7.396e-05,2]
[344351366,1733363432049,-929.38881993,7.396e-05,2]
[344351367,1733363432062,-1915.00694971,7.396e-05,2]
[344351368,1733363432074,-1354.75963036,7.396e-05,2]
[344351369,1733363432083,-2577.501,7.396e-05,2]
[344351370,1733363432092,-172.972,7.396e-05,2]
[344351371,1733363432101,-500.0,7.396e-05,2]
[344351372,1733363432111,-500.0,7.396e-05,2]
[344351373,1733363432120,-405.15573307,7.396e-05,2]
[344351374,1733363432131,-500.0,7.396e-05,2]
[344351375,1733363432140,-500.0,7.396e-05,2]
[344351376,1733363432158,-500.0,7.396e-05,2]
[344351377,1733363432167,-500.0,7.396e-05,2]
[344351378,1733363432177,-500.0,7.396e-05,2]
[344351379,1733363432187,-519.4598338,7.396e-05,2]
[344351380,1733363432197,-500.0,7.396e-05,2]
[344351381,1733363432207,-500.0,7.396e-05,2]
[344351382,1733363432216,-500.0,7.396e-05,2]
[344351383,1733363432226,-500.89161068,7.396e-05,2]
[344351384,1733363432235,-500.0,7.396e-05,2]
[344351385,1733363432245,-500.0,7.396e-05,2]
[344351386,1733363432255,-500.0,7.396e-05,2]
[344351387,1733363432264,-500.0,7.396e-05,2]
[344351388,1733363432274,-504.93564682,7.396e-05,2]
[344351389,1733363432284,-297.75134033,7.396e-05,2]
[344351390,1733363432294,-503.08710572,7.396e-05,2]
[344351391,1733363432304,-500.0,7.396e-05,2]
[344351392,1733363432313,-500.0,7.396e-05,2]
[344351393,1733363432323,-781.0,7.396e-05,2]
[344351394,1733363432333,-271.51785477,7.396e-05,2]
[344351395,1733363432343,-243.939843,7.396e-05,2]
[344351396,1733363432353,-500.0,7.396e-05,2]
[344351397,1733363432363,-259.52570279,7.396e-05,2]
[344351398,1733363432373,-500.0,7.396e-05,2]
[344351399,1733363432383,-500.0,7.396e-05,2]
[344351400,1733363432393,-500.0,7.396e-05,2]
[344351401,1733363432408,-500.0,7.396e-05,2]
[344351402,1733363432418,-500.0,7.396e-05,2]
[344351403,1733363432429,-678.8,7.396e-05,2]
[344351404,1733363432439,-500.0,7.396e-05,2]
[344351405,1733363432448,-500.0,7.396e-05,2]
[344351406,1733363432458,-1139.43,7.396e-05,2]
[344351407,1733363432467,-500.0,7.396e-05,2]
[344351408,1733363432477,-500.0,7.396e-05,2]
[344351409,1733363432487,-634.61,7.396e-05,2]
[344351410,1733363432497,-500.0,7.396e-05,2]
[344351411,1733363432506,-500.0,7.396e-05,2]
[344351412,1733363432516,-500.0,7.396e-05,2]
[344351413,1733363432526,-1202.65,7.396e-05,2]
[344351414,1733363432535,-172.682363,7.396e-05,2]
[344351415,1733363432546,-500.0,7.396e-05,2]
[344351416,1733363432556,-155.972989,7.396e-05,2]
[344351417,1733363432565,-9710.71065447,7.397e-05,2]
[344351418,1733363432578,-1001.3784,7.397e-05,2]
[344351419,1733363432590,-8752.96688399,7.397e-05,2]
[344351420,1733363432602,-756.42007954,7.397e-05,2]
[344351421,1733363432619,-3812.1,7.397e-05,2]
[344351422,1733363432630,-44184.06438835,7.397e-05,2]
[344351423,1733363432642,-19999.83848746,7.397e-05,2]
[344351424,1733363432661,-31569.21606112,7.397e-05,2]
[344351443,1733363438127,-500.0,7.396e-05,2]
[344351444,1733363438137,-2908.82122281,7.397e-05,2]
[344351445,1733363438152,-4326.28528448,7.397e-05,2]
[344351446,1733363438167,-1045.70132941,7.397e-05,2]
[344351447,1733363438333,-78646.17740837,7.397e-05,2]
[344351448,1733363438343,-307.1263,7.397e-05,2]
[344351449,1733363438353,-500.0,7.397e-05,2]
[344351450,1733363438364,-500.0,7.397e-05,2]
[344351451,1733363438374,-521.83457448,7.397e-05,2]
[344351452,1733363438384,-500.0,7.397e-05,2]
[344351453,1733363438394,-500.0,7.397e-05,2]
[344351454,1733363438408,-500.0,7.397e-05,2]
[344351455,1733363438418,-500.0,7.397e-05,2]
[344351456,1733363438428,-500.0,7.397e-05,2]
[344351457,1733363438439,-500.0,7.397e-05,2]
[344351458,1733363438449,-334.15750124,7.397e-05,2]
[344351459,1733363438459,-511.93005804,7.397e-05,2]
[344351460,1733363438470,-500.0,7.397e-05,2]
[344351461,1733363438480,-505.80357798,7.397e-05,2]
[344351462,1733363438490,-524.69303282,7.397e-05,2]
[344351463,1733363438500,-189.308542,7.397e-05,2]
[344351464,1733363438509,-404.99999307,7.397e-05,2]
[344351471,1733363440107,-535.04,7.339e-05,2]
[344351472,1733363440119,-1918.836555,7.339e-05,2]
[344351473,1733363440132,-565.8838164,7.339e-05,2]
[344351474,1733363440142,-95.00000693,7.397e-05,2]
[344351475,1733363440153,-504.64521833,7.397e-05,2]
[344351476,1733363440163,-500.99908625,7.397e-05,2]
[344351477,1733363440173,-224.20450358,7.397e-05,2]
[344351478,1733363440184,-500.0,7.397e-05,2]
[344351479,1733363440193,-511.81149369,7.397e-05,2]
[344351480,1733363440203,-514.0602286,7.397e-05,2]
[344351481,1733363440213,-527.38292466,7.397e-05,2]
[344351482,1733363440223,-501.10603757,7.397e-05,2]
[344351483,1733363440233,-500.0,7.397e-05,2]
[344351484,1733363440244,-513.36304803,7.397e-05,2]
[344351485,1733363440253,-511.69582594,7.397e-05,2]
[344351486,1733363440264,-500.83224659,7.397e-05,2]
[344351487,1733363440274,-500.0,7.397e-05,2]
[344351488,1733363440284,-529.31357416,7.397e-05,2]
[344351489,1733363440302,-514.74597206,7.397e-05,2]
[344351490,1733363440312,-505.20061793,7.397e-05,2]